Cogmind - Beta 17.1 @@@ ROGUE MODE // 2026.08.30 @ 08:07:16 Player: MrFartsburg Result: Destroyed by B-75 Beast with Magnetic Acceleration Cannon Performance ------------- Evolutions (5) 2500 Regions Visited (11) 2200 Robots Destroyed (54) 270 Value Destroyed (1488) 1488 Prototype IDs (4) 80 Alien Tech Used (0) 0 Bonus (758) 758 TOTAL SCORE: 7296 Bonus ------- Pacifist 200 Follower Combat Kills 58 Entered DSFs 500 Cogmind --------- Core Integrity 0/1000 Matter 300/300 Energy 99/100 System Corruption 1% Temperature Cool (12) Movement Core (50) Location -5/Upper Caves Parts ------- > --- POWER (2) -------- (None) > --- PROPULSION (3) --- (None) > --- UTILITY (9) ------ Authchip [Device] Dynamic Insulation System > --- WEAPON (3) ------- (None) > --- INVENTORY (5) ---- Field Propulsion Drive Authchip [Power] Peak State ------------ > --- POWER ------------ Reinforced Deuterium Engine Neutrino Core > --- PROPULSION ------- Armored Medium Treads Armored Medium Treads Armored Medium Treads > --- UTILITY ---------- Coolant Injector Actuator Array Improved Transmission Jammer Phase Shifter Focal Shield EM Shield System Shield Authchip [Device] Dynamic Insulation System > --- WEAPON ----------- Wave Gun Variable Charge Gun Proton Cannon > --- INVENTORY -------- Micro Fission Core Field Propulsion Drive Authchip [Power] Pulse Rifle Advanced Assault Cannon [Rating: 86] Favorites ----------- Power Light Ion Engine Engine Light Ion Engine Power Core Neutrino Core Propulsion Armored Medium Treads Treads Armored Medium Treads Leg Aluminum Leg Wheel Wheel Hover Unit Gravmag System Flight Unit VTOL Module Utility System Shield Device Actuator Array Storage Small Storage Unit Processor Visual Processing Unit Hackware System Shield Protection Improved Weapon Shielding Weapon Improved Light Cannon Energy Gun Variable Charge Gun Energy Cannon Proton Cannon Ballistic Gun Minigun Ballistic Cannon Improved Light Cannon Special Weapon Plasma Cutter Build | -11 -10 -10 -9 -9 -8 -7 -7 -6 -6 -5 -5 ------- Run | Yrd Mat Min Mat Min Mat Fac Sto Fac DSF Fac Upp Slots Evolved 10 | . . . 2 . 2 2 . 2 . 2 . Power 1 | . . . 1 . . . . . . . . Propulsion 1 | . . . . . . 1 . . . . . Utility 7 | . . . 1 . 1 1 . 2 . 2 . Weapon 1 | . . . . . 1 . . . . . . Parts Attached 83 | 6 1 . 6 3 18 6 21 . 13 4 5 Power 16 | 1 . . 1 1 4 1 5 . 2 . 1 Engine 11 | 1 . . 1 1 3 1 3 . 1 . . Core 5 | . . . . . 1 . 2 . 1 . 1 Reactor . | . . . . . . . . . . . . Propulsion 17 | 2 . . . . 5 . 6 . 3 . 1 Treads 5 | 2 . . . . . . . . 3 . . Leg 4 | . . . . . 1 . 2 . . . 1 Wheel 2 | . . . . . 2 . . . . . . Hover 1 | . . . . . . . 1 . . . . Flight 5 | . . . . . 2 . 3 . . . . Utility 28 | 1 1 . 2 . 5 2 8 . 4 2 3 Device 18 | . . . 2 . 1 1 8 . 3 2 1 Storage 1 | 1 . . . . . . . . . . . Processor 3 | . 1 . . . 1 1 . . . . . Hackware 2 | . . . . . 1 . . . 1 . . Protection 4 | . . . . . 2 . . . . . 2 Artifact . | . . . . . . . . . . . . Weapon 22 | 2 . . 3 2 4 3 2 . 4 2 . Energy Gun 6 | . . . . 1 . 1 . . 2 2 . Energy Cannon 3 | . . . . 1 . 1 . . 1 . . Ballistic Gun 10 | 2 . . 1 . 4 1 2 . . . . Ballistic Cannon 2 | . . . 1 . . . . . 1 . . Launcher . | . . . . . . . . . . . . Special Weapon 1 | . . . 1 . . . . . . . . Impact Weapon . | . . . . . . . . . . . . Slashing Weapon . | . . . . . . . . . . . . Piercing Weapon . | . . . . . . . . . . . . Special Melee Weapon . | . . . . . . . . . . . . Unidentified Prototypes 4 | . . . . . 2 2 . . . . . Parts Lost 59 | . . . . 2 13 2 20 . 1 . 21 Power 13 | . . . . 1 2 1 6 . . . 3 Propulsion 13 | . . . . . 3 . 6 . . . 4 Utility 17 | . . . . . 3 . 4 . . . 10 Weapon 16 | . . . . 1 5 1 4 . 1 . 4 Highest Loss Streak 17 | . . . . 1 9 1 6 . 1 . 17 To Critical Strikes 1 | . . . . 1 . . . . . . . Average Backups 4 | . 3 4 3 4 5 2 3 1 2 4 3 Power . | . 1 1 . . . . . . . 1 . Propulsion . | . . . . . . . . . . . 1 Utility 1 | . . 1 . 1 2 1 . 1 . 1 1 Weapon 1 | . 1 1 2 2 2 1 2 . . 1 . Tool/Special . | . . . . . . . . . . . . Unused Backups 4 | . . . 1 . . . . . . 1 2 Power . | . . . . . . . . . . . . Propulsion 1 | . . . . . . . . . . . 1 Utility 2 | . . . 1 . . . . . . . 1 Weapon 1 | . . . . . . . . . . 1 . Tool/Special . | . . . . . . . . . . . . Average Slot Usage (%) 88 | . 94 100 99 100 89 85 79 26 76 99 70 Engine 10 | . 14 14 22 22 10 10 6 . 4 5 3 Core 3 | . . . . . 6 . 3 . 5 5 3 Treads 11 | . 28 28 22 22 5 . . . 16 17 12 Leg 1 | . . . . . 3 . 2 . . . . Wheel 1 | . . . . . . 15 2 . . . . Flight 1 | . . . . . . . 6 . . . . Device 17 | . . . 12 22 3 14 14 13 26 40 26 Storage 3 | . 14 14 9 . 9 1 . . . . . Processor 5 | . 8 14 11 11 2 12 12 . . . . Hackware 5 | . . . . . 6 7 7 6 11 11 5 Protection 4 | . . . . . 12 . . . . . 4 Energy Gun 2 | . . . . 2 . . . . 3 10 7 Energy Cannon 2 | . . . . 4 1 2 5 . 1 5 . Ballistic Gun 8 | . 28 28 11 . 17 18 11 . . . . Ballistic Cannon 4 | . . . 3 11 7 . . . 4 . 1 Special Weapon 1 | . . . 7 3 . . . . . . . Peak Build Rating 86 | 6 8 8 14 14 28 37 45 24 69 86 86 Average Rating 36 | 3 7 8 12 13 24 31 35 18 54 83 59 On Entrance 24 | . 6 8 8 14 14 21 37 12 14 69 86 Avg Prop Armor Cover (%) 10 | . . . . . . . 10 . . . . Naked Turns . | . . . . . . . . . . . . Heaviest Build 65 | 11 11 11 18 18 39 32 36 6 56 59 65 Greatest Support 81 | 40 40 40 40 40 40 20 20 9 81 81 81 Greatest Overweight (x) 9 | . . . . . 9 1 8 . 2 . 4 Average Overweight (x) . | . . . . . 1 . 1 . . . . Largest Inventory Capacity 8 | 8 8 8 8 5 8 8 5 5 5 5 5 Average Capacity 6 | 5 8 8 7 5 8 5 5 5 5 5 5 Most Carried 8 | 3 4 4 5 5 8 5 5 2 4 5 5 Average Carried 4 | . 3 4 3 4 5 2 2 . 2 4 3 Final Capacity 8 | 8 8 8 5 5 8 5 5 5 5 5 5 Final Carried 5 | 2 4 4 5 4 . 5 3 . 4 5 2 Class Distribution -------------------- 39% | Mutant 28% | Tank 13% | Scavenger-Tank 7% | Scavenger-Skirmisher 5% | Skirmisher Dominant Class ---------------- Mutant | -10/Materials Mutant | -10/Mines Mutant | -9/Materials Mutant | -9/Mines Tank | -8/Materials Scavenger-Skirmisher | -7/Factory Skirmisher | -7/Storage Skirmisher | -6/Factory Mutant | -6/DSF Scavenger-Tank | -5/Factory Mutant | -5/Upper Caves Resources | -11 -10 -10 -9 -9 -8 -7 -7 -6 -6 -5 -5 ----------- Run | Yrd Mat Min Mat Min Mat Fac Sto Fac DSF Fac Upp Matter Collected 1809 | 206 . . 166 92 636 52 350 . 142 123 42 Remotely . | . . . . . . . . . . . . Salvage Created 1541 | . . . 123 65 692 52 336 . 58 . 215 Parts 102 | . . . . 10 54 3 22 . 7 . 6 Haulers Intercepted 1 | . . . . . 1 . . . . . . Recyclers Shooed 1 | . . . . . . 1 . . . . . Parts Field Recycled . | . . . . . . . . . . . . Retrieved Matter . | . . . . . . . . . . . . Parts Self-Destructed 6 | . . . . . . . . . . . 6 Prevented . | . . . . . . . . . . . . Parts Restored . | . . . . . . . . . . . . Kills | -11 -10 -10 -9 -9 -8 -7 -7 -6 -6 -5 -5 ------- Run | Yrd Mat Min Mat Min Mat Fac Sto Fac DSF Fac Upp Combat Hostiles Destroyed 46 | . . . 3 6 19 . 9 . 4 . 5 Guns 28 | . . . 1 2 15 . 6 . . . 4 Cannons 17 | . . . 2 4 3 . 3 . 4 . 1 AOE 1 | . . . . . 1 . . . . . . Classes Destroyed 8 | . . . 2 1 4 . 1 . . . . Worker 3 | . . . . . 2 1 . . . . . Builder 2 | . . . . . 2 . . . . . . Hauler 1 | . . . . . 1 . . . . . . Watcher 2 | . . . . . 1 1 . . . . . Swarmer 27 | . . . . 6 11 . 4 . 4 . 2 Grunt 12 | . . . 2 . 6 . 2 . . . 2 Sentry 5 | . . . 1 . 2 . 2 . . . . Programmer 2 | . . . . . . . 1 . . . 1 Best Kill Streak 5 | . . . 2 3 5 2 5 . 4 . 2 Combat Bots Only 5 | . . . 2 3 4 . 5 . 4 . 2 Max Kills in Single Turn 3 | . . . 1 1 3 1 1 . 1 . 1 Gunslinging . | . . . . . . . . . . . . Exploded 1 | . . . . . 1 . . . . . . Melee . | . . . . . . . . . . . . Uniques/NPCs Destroyed . | . . . . . . . . . . . . Combat | -11 -10 -10 -9 -9 -8 -7 -7 -6 -6 -5 -5 -------- Run | Yrd Mat Min Mat Min Mat Fac Sto Fac DSF Fac Upp Hostile Shots Fired 950 | . . . 34 60 162 . 338 . 43 7 306 Missed 299 | . . . 11 18 36 . 129 . 8 3 94 Hits 651 | . . . 23 42 126 . 209 . 35 4 212 Melee 1 | . . . . 1 . . . . . . . Projectile 650 | . . . 23 41 126 . 209 . 35 4 212 AOE 2 | . . . . . . . 2 . . . . Critical Strikes 14 | . . . . 2 5 . 1 . . . 6 Actively Blocked 1 | . . . . . 1 . . . . . . Damage Taken 8076 | . . . 261 271 1565 74 2070 . 413 74 3348 Core 1932 | . . . 65 6 343 . 428 . 61 19 1010 Absorbed by Shields 223 | . . . 50 117 56 . . . . . . Redirected to Shielding 194 | . . . . . 106 . . . . . 88 Ignored by Resistances 204 | . . . . . 40 . . . 117 . 47 Core Remaining (%) 74 | 100 . 100 . 82 37 . 38 . 92 . . Volleys Fired 134 | . . . 10 26 49 3 20 . 10 1 15 Largest 3 | . . . 2 2 3 3 3 . 2 3 3 Hottest 231 | . . . 53 89 114 83 86 . 121 231 231 Shots Fired 310 | . . . 19 43 136 9 55 . 12 3 33 Gun 185 | . . . 4 13 95 6 38 . 2 2 25 Cannon 107 | . . . 6 21 41 3 17 . 10 1 8 Launcher . | . . . . . . . . . . . . Special 18 | . . . 9 9 . . . . . . . Kinetic 211 | . . . 10 18 126 6 38 . 10 . 3 Thermal 67 | . . . 9 9 . 3 17 . 2 2 25 Explosive . | . . . . . . . . . . . . Electromagnetic 32 | . . . . 16 10 . . . . 1 5 Robot Hit Streak 14 | . . . 7 3 8 2 14 . 3 4 10 Robot Miss Streak 6 | . . . 1 4 5 6 5 . 3 . 2 Penetration Max 1 | . . . . . . . 1 . . . . Secondary Targets . | . . . . . . . . . . . . Shots Hit Robots 168 | . . . 14 12 71 2 38 . 6 3 22 Core Hits 82 | . . . 6 6 35 3 19 . 4 . 9 Critical Kills 1 | . . . . . 1 . . . . . . Critical Parts Destroyed . | . . . . . . . . . . . . Critical Strikes 1 | . . . . . 1 . . . . . . Destroy 1 | . . . . . 1 . . . . . . Melee Attacks . | . . . . . . . . . . . . Impact . | . . . . . . . . . . . . Slashing . | . . . . . . . . . . . . Piercing . | . . . . . . . . . . . . Sneak Attacks . | . . . . . . . . . . . . Combat Hostiles . | . . . . . . . . . . . . Follow-up Attacks . | . . . . . . . . . . . . Damage Inflicted 3745 | . . . 208 220 1524 57 892 . 192 71 581 Guns 2190 | . . . 51 52 996 52 553 . . 38 448 Cannons 1223 | . . . 84 168 282 . 334 . 192 33 130 Explosions 231 | . . . . . 231 . . . . . . Melee . | . . . . . . . . . . . . Ramming 32 | . . . 4 . 15 5 5 . . . 3 Kinetic 2299 | . . . 135 150 1186 52 553 . 192 . 31 Thermal 1120 | . . . 69 . 231 . 334 . . 38 448 Explosive . | . . . . . . . . . . . . Electromagnetic 294 | . . . . 70 92 . . . . 33 99 Impact . | . . . . . . . . . . . . Slashing . | . . . . . . . . . . . . Piercing . | . . . . . . . . . . . . Highest Corruption 1 | . . . . . . 1 . . . . 1 Average Corruption 1 | . . . . . . 1 . . . . 1 Corruption Purged 1 | . . . . . . 1 . . . . . Corruption Blocked . | . . . . . . . . . . . . Effects 1 | . . . . . . . . . . . 1 Matter Fused 1 | . . . . . . . . . . . 1 Overload Shots . | . . . . . . . . . . . . Overflow Damage 4 | . . . . . 3 . . . 1 . . Projectiles 2 | . . . . . 1 . . . 1 . . Explosions 2 | . . . . . 2 . . . . . . Melee . | . . . . . . . . . . . . Knockbacks 7 | . . . 1 2 1 . . . 3 . . Impact . | . . . . . . . . . . . . Kinetic 7 | . . . 1 2 1 . . . 3 . . Secondary . | . . . . . . . . . . . . Self-Inflicted Damage 4 | . . . . . . 2 1 . . . 1 Shots . | . . . . . . . . . . . . Rammed 11 | . . . 3 . 4 1 2 . . . 1 Targets Rammed 12 | . . . 3 . 4 1 3 . . . 1 Kicked 1 | . . . . . . . 1 . . . . Crushed . | . . . . . . . . . . . . Highest Temperature 301 | . . . . . 301 . 138 . 18 171 199 Average Temperature 90 | . . . . . 96 . 60 . 9 89 113 Received Heat Transfer 1815 | . . . 113 16 699 . 420 . . 36 531 Effects 3 | . . . . . 3 . . . . . . Energy Bleed 3 | . . . . . 3 . . . . . . Siege Activations . | . . . . . . . . . . . . Martial Activations . | . . . . . . . . . . . . Shielding Activations . | . . . . . . . . . . . . Robots Disrupted . | . . . . . . . . . . . . Combat Hostiles . | . . . . . . . . . . . . Robots Corrupted . | . . . . . . . . . . . . Combat Hostiles . | . . . . . . . . . . . . Parts Fried . | . . . . . . . . . . . . Impact Corruptions . | . . . . . . . . . . . . Robots Melted . | . . . . . . . . . . . . Combat Hostiles . | . . . . . . . . . . . . Parts Melted 3 | . . . 1 . . . . . . . 2 Heat Transferred 1606 | . . . 222 . 200 . 444 . . 74 666 Parts Sabotaged . | . . . . . . . . . . . . Parts Stolen . | . . . . . . . . . . . . Parts Stripped . | . . . . . . . . . . . . Power Chain Reactions 1 | . . . . . 1 . . . . . . Alert | -11 -10 -10 -9 -9 -8 -7 -7 -6 -6 -5 -5 ------- Run | Yrd Mat Min Mat Min Mat Fac Sto Fac DSF Fac Upp Maximum Alert Level . | . . . . . . . . . . . . Low Security (%) 100 | 100 100 100 100 100 100 100 100 100 100 100 . Level 1 . | . . . . . . . . . . . . Level 2 . | . . . . . . . . . . . . Level 3 . | . . . . . . . . . . . . Level 4 . | . . . . . . . . . . . . Level 5 . | . . . . . . . . . . . . High Security . | . . . . . . . . . . . . Max Security . | . . . . . . . . . . . . Peak Influence 121 | . . . 41 107 121 42 99 2 90 46 . Initial 46 | . . . . 7 8 42 . 2 1 46 . Average 28 | . . . 7 37 38 10 38 2 44 4 . Influence Increases 1612 | . . . 101 210 603 13 310 . 90 . 285 Destroy 0b10 Robot/C 960 | . . . 60 140 400 . 180 . 80 . 100 Destroy 0b10 Robot/NC 40 | . . . . . 30 10 . . . . . Destroy Leader 206 | . . . 20 20 84 2 50 . 10 . 20 Allied During Kill 20 | . . . . 3 17 . . . . . . Successful Hack 23 | . . . 5 . 4 . 14 . . . . Disable Machine 75 | . . . 15 . 45 . 15 . . . . Destroy Structure 18 | . . . 1 2 8 1 6 . . . . Lose Combat Pursuer 270 | . . . . 45 15 . 45 . . . 165 Influence Decreases 1485 | . . . 80 208 531 108 303 5 2 90 158 Entered New Map 132 | . . . . 14 15 53 . 5 1 44 . Time Decay 952 | . . . 80 174 326 45 188 . . 46 93 Lost Part 341 | . . . . 20 130 10 115 . 1 . 65 Lost Ally 60 | . . . . . 60 . . . . . . Squads Dispatched 13 | . . . 1 . 2 . 7 . 1 2 . Investigation 1 | . . . . . . . . . . 1 . Extermination 2 | . . . . . . . 1 . . 1 . Reinforcement 7 | . . . 1 . 2 . 3 . 1 . . Assault . | . . . . . . . . . . . . Garrison 3 | . . . . . . . 3 . . . . Intercept . | . . . . . . . . . . . . Searches Triggered . | . . . . . . . . . . . . Construction Impeded . | . . . . . . . . . . . . Haulers Reinforced . | . . . . . . . . . . . . Active Scanning Responses . | . . . . . . . . . . . . Cargo Convoy Interrupts . | . . . . . . . . . . . . Stealth | -11 -10 -10 -9 -9 -8 -7 -7 -6 -6 -5 -5 --------- Run | Yrd Mat Min Mat Min Mat Fac Sto Fac DSF Fac Upp Distress Signals 7 | . . . 2 . 2 . 3 . . . . Communications Jammed 1 | . . . . . . . . . . 1 . Distress Signals 1 | . . . . . . . . . . 1 . Times Spotted 109 | . . . 8 13 27 1 29 . 4 4 23 Peak Tracking Total 10 | . . . 4 4 5 1 10 . 4 4 6 Tactical Retreats 9 | . . . . 1 1 . 3 . . . 4 Traps | -11 -10 -10 -9 -9 -8 -7 -7 -6 -6 -5 -5 ------- Run | Yrd Mat Min Mat Min Mat Fac Sto Fac DSF Fac Upp Traps Triggered 2 | . . . . . . 2 . . . . . Indirectly . | . . . . . . . . . . . . Trap Hack Attempts . | . . . . . . . . . . . . Triggered . | . . . . . . . . . . . . Disarmed . | . . . . . . . . . . . . Reprogrammed . | . . . . . . . . . . . . Reused . | . . . . . . . . . . . . Traps Extracted . | . . . . . . . . . . . . Installed . | . . . . . . . . . . . . Triggered . | . . . . . . . . . . . . Machines | -11 -10 -10 -9 -9 -8 -7 -7 -6 -6 -5 -5 ---------- Run | Yrd Mat Min Mat Min Mat Fac Sto Fac DSF Fac Upp Machines Disabled 5 | . . . 1 . 3 . 1 . . . . Max in Single Turn 1 | . . . 1 . 1 . 1 . . . . Machines Repaired . | . . . . . . . . . . . . Machines Dismantled 1 | . . . 1 . . . . . . . . Machines Sabotaged . | . . . . . . . . . . . . Overloaded Fab Kills . | . . . . . . . . . . . . Hacking | -11 -10 -10 -9 -9 -8 -7 -7 -6 -6 -5 -5 --------- Run | Yrd Mat Min Mat Min Mat Fac Sto Fac DSF Fac Upp Machines Accessed 14 | . . . 4 . 3 . 2 1 . 4 . Terminals 11 | . . . 3 . 3 . 2 1 . 2 . Fabricators . | . . . . . . . . . . . . Repair Stations . | . . . . . . . . . . . . Recycling Units 2 | . . . 1 . . . . . . 1 . Scanalyzers 1 | . . . . . . . . . . 1 . Garrison Access . | . . . . . . . . . . . . Total Hacks 36 | . . . 8 . 11 . 3 1 . 13 . Successful 25 | . . . 6 . 7 . 3 1 . 8 . Failed 11 | . . . 2 . 4 . . . . 5 . Catastrophic . | . . . . . . . . . . . . Database Lockouts . | . . . . . . . . . . . . Manual . | . . . . . . . . . . . . Terminals 26 | . . . 4 . 11 . 3 1 . 7 . Fabricators . | . . . . . . . . . . . . Repair Stations . | . . . . . . . . . . . . Recycling Units 6 | . . . 4 . . . . . . 2 . Scanalyzers 4 | . . . . . . . . . . 4 . Garrison Access . | . . . . . . . . . . . . Terminal Hacks 19 | . . . 2 . 7 . 3 1 . 6 . Record 10 | . . . . . 4 . 2 . . 4 . Open Door 1 | . . . . . . . 1 . . . . Open DSF 2 | . . . . . . . . 1 . 1 . Alert Level 1 | . . . . . 1 . . . . . . Dispatch Records 1 | . . . . . 1 . . . . . . Hauler Manifests 1 | . . . . . 1 . . . . . . Zone Layout 3 | . . . 2 . . . . . . 1 . Fabricator Hacks . | . . . . . . . . . . . . Repair Station Hacks . | . . . . . . . . . . . . Recycling Unit Hacks 4 | . . . 4 . . . . . . . . Recycle Component 1 | . . . 1 . . . . . . . . Process 1 | . . . 1 . . . . . . . . Report Inventory 2 | . . . 2 . . . . . . . . Scanalyzer 2 | . . . . . . . . . . 2 . Insert Component 1 | . . . . . . . . . . 1 . Retrieve Study 1 | . . . . . . . . . . 1 . Garrison Access Hacks . | . . . . . . . . . . . . Unauthorized Hacks . | . . . . . . . . . . . . Terminals . | . . . . . . . . . . . . Fabricators . | . . . . . . . . . . . . Repair Stations . | . . . . . . . . . . . . Recycling Units . | . . . . . . . . . . . . Scanalyzers . | . . . . . . . . . . . . Garrison Access . | . . . . . . . . . . . . Data Cores Recovered . | . . . . . . . . . . . . Used . | . . . . . . . . . . . . Hacking Detections 9 | . . . 2 . 2 . 2 . . 3 . Full Trace Events 2 | . . . . . 1 . . . . 1 . Feedback Events . | . . . . . . . . . . . . Feedback Blocked . | . . . . . . . . . . . . Robot Schematics Acquired . | . . . . . . . . . . . . Robots Built . | . . . . . . . . . . . . Authchips . | . . . . . . . . . . . . Time . | . . . . . . . . . . . . Total Robot Build Rating . | . . . . . . . . . . . . Part Schematics Acquired . | . . . . . . . . . . . . Parts Built . | . . . . . . . . . . . . Authchips . | . . . . . . . . . . . . Time . | . . . . . . . . . . . . Total Part Build Rating . | . . . . . . . . . . . . Part Studies Acquired 1 | . . . . . . . . . . 1 . Parts Repaired . | . . . . . . . . . . . . Time . | . . . . . . . . . . . . Parts Recycled 1 | . . . 1 . . . . . . . . Recycled Matter 80 | . . . 80 . . . . . . . . Retrieved Matter . | . . . . . . . . . . . . Retrieved Components . | . . . . . . . . . . . . Parts Scanalyzed . | . . . . . . . . . . . . Part Schematics Acquired . | . . . . . . . . . . . . Parts Damaged . | . . . . . . . . . . . . Bothacking | -11 -10 -10 -9 -9 -8 -7 -7 -6 -6 -5 -5 ------------ Run | Yrd Mat Min Mat Min Mat Fac Sto Fac DSF Fac Upp Used RIF Installer . | . . . . . . . . . . . . Robots Hacked . | . . . . . . . . . . . . Non-combat . | . . . . . . . . . . . . Combat . | . . . . . . . . . . . . Robot Hacks Applied . | . . . . . . . . . . . . Relay Couplers Released . | . . . . . . . . . . . . Fabnet Peak Effective % . | . . . . . . . . . . . . Robots Rewired . | . . . . . . . . . . . . Allies Hacked . | . . . . . . . . . . . . Hacks Repelled . | . . . . . . . . . . . . Allies | -11 -10 -10 -9 -9 -8 -7 -7 -6 -6 -5 -5 -------- Run | Yrd Mat Min Mat Min Mat Fac Sto Fac DSF Fac Upp Total Allies 3 | . . . . 3 . . . . . . . Largest Group 3 | . . . . 3 3 . . . . . . Highest-Rated Group 40 | . . . . 40 40 . . . . . . Highest-Rated Ally 16 | . . . . 16 16 . . . . . . Total Orders . | . . . . . . . . . . . . Ally Attacks 14 | . . . . 2 12 . . . . . . Total Damage 124 | . . . . 35 89 . . . . . . Kills 2 | . . . . 1 1 . . . . . . Allies Corrupted . | . . . . . . . . . . . . Allies Melted . | . . . . . . . . . . . . Intel | -11 -10 -10 -9 -9 -8 -7 -7 -6 -6 -5 -5 ------- Run | Yrd Mat Min Mat Min Mat Fac Sto Fac DSF Fac Upp Active Infowar (turns) 2903 | . 27 21 355 630 310 173 461 . . 559 367 Optics 1977 | . 27 21 355 630 310 173 461 . . . . Jamming 926 | . . . . . . . . . . 559 367 Robot Analysis Total . | . . . . . . . . . . . . Derelict Logs Recovered 2 | . . . . 1 . . . . . . 1 Drone Launches 19 | . . . . . . . 19 . . . . Drone Recoveries 9 | . . . . . . . 9 . . . . Exploration | -11 -10 -10 -9 -9 -8 -7 -7 -6 -6 -5 -5 ------------- Run | Yrd Mat Min Mat Min Mat Fac Sto Fac DSF Fac Upp Turns Passed 4372 | 76 34 21 355 630 1191 173 542 6 279 569 496 Spaces Moved 2299 | 44 20 14 179 342 429 154 250 3 140 327 397 Core 246 | 4 . . . . 11 . 30 . . . 201 Treads 1448 | 40 20 14 179 342 221 . . . 119 327 186 Legs 197 | . . . . . 130 . 57 . . . 10 Wheels 272 | . . . . . 59 154 59 . . . . Hover 62 | . . . . . . . 38 3 21 . . Flight 74 | . . . . . 8 . 66 . . . . Fastest Speed 50 | 50 160 160 160 160 95 80 50 60 60 170 50 Average Speed 162 | 150 160 160 160 160 233 88 167 60 157 170 109 Slowest Speed 680 | 160 160 160 160 160 680 95 675 60 180 170 250 Overloaded Moves . | . . . . . . . . . . . . Propulsion Burnouts . | . . . . . . . . . . . . Robots Hopped . | . . . . . . . . . . . . Potential Cave-ins . | . . . . . . . . . . . . Cave-ins Triggered . | . . . . . . . . . . . . Exploration Rate (%) 33 | 5 7 8 19 81 39 7 51 . 96 6 44 Regions Visited 11 Branch Regions 4 Pre-discovered Areas 1 | . . . . 1 . . . . . . . Known Exits Taken 1 | . . . . . . . . 1 . . . Unknown Exits Taken 9 | 1 1 1 1 1 1 1 1 . . 1 . Scrap Searched 5 | . . . . 3 . . . . . . 2 Spaces Dug . | . . . . . . . . . . . . Terrain Destroyed 13 | . . . 1 2 6 . 4 . . . . Melee . | . . . . . . . . . . . . Projectile 9 | . . . 1 2 2 . 4 . . . . AOE 4 | . . . . . 4 . . . . . . Terrain Rammed . | . . . . . . . . . . . . Walls Destroyed . | . . . . . . . . . . . . Machines Disabled . | . . . . . . . . . . . . Actions | -11 -10 -10 -9 -9 -8 -7 -7 -6 -6 -5 -5 --------- Run | Yrd Mat Min Mat Min Mat Fac Sto Fac DSF Fac Upp Total 2653 | 52 22 13 207 372 527 182 319 7 182 338 432 Wait 37 | . . . 1 . . 1 10 . 11 1 13 Move 2288 | 43 19 13 178 341 428 153 249 2 139 326 397 Hop . | . . . . . . . . . . . . Pick Up 48 | 3 2 . 4 1 14 7 8 . 6 3 . Fast Attach 40 | 5 1 . . 1 4 4 9 . 11 2 3 Attach 31 | 1 . . 2 1 11 1 5 3 3 1 3 Detach 3 | . . . . . . . 1 . 1 1 . Swap 27 | . . . 5 1 10 2 8 . . 1 . Drop 21 | . . . . 1 7 2 6 2 1 2 . Fire 134 | . . . 10 26 49 3 20 . 10 1 15 Melee . | . . . . . . . . . . . . Ram 4 | . . . . . . 1 2 . . . 1 Kick 1 | . . . . . . . 1 . . . . Crush 7 | . . . 3 . 4 . . . . . . Escape Stasis 8 | . . . . . . 8 . . . . . Rewire . | . . . . . . . . . . . . Trap . | . . . . . . . . . . . . Miscellaneous 4 | . . . 4 . . . . . . . . Route ------- -11/Scrapyard -10/Materials -10/Mines (discovered 2 exits: *Mat x2) -9/Materials -9/Mines -8/Materials -7/Factory -7/Storage -6/Factory -6/DSF -5/Factory -5/Upper Caves History --------- Turn | Location | Event 14 | -11/Scrapyard | Discovered new exit (range 15) 77 | -11/Scrapyard | Entered Materials 77 | -10/Materials | Discovered new exit (range 15) 111 | -10/Materials | Entered Mines 118 | -10/Mines | Discovered new exit (range 14) 121 | -10/Mines | Discovered new exit (range 7) 132 | -10/Mines | Entered Materials 132 | -9/Materials | Evolved 2 slots: Power x1, Utility x1 308 | -9/Materials | Build established: Mutant 459 | -9/Materials | Discovered new exit (range 18) 487 | -9/Materials | Entered Mines 933 | -9/Mines | Assisted by bots powering up and referring to "LRC-V3" 1101 | -9/Mines | Learned location of Zion (-6) 1109 | -9/Mines | Discovered new exit (range 5) 1117 | -9/Mines | Entered Materials 1117 | -8/Materials | Accompanied by 3 allies 1117 | -8/Materials | Evolved 2 slots: Utility x1, Weapon x1 1381 | -8/Materials | Lost 3 allies 1415 | -8/Materials | Build established: Tank 2186 | -8/Materials | Core integrity fell below 50% 2255 | -8/Materials | Lost 9 parts (2p1n1u5w) 2290 | -8/Materials | Discovered new exit (range 19) 2308 | -8/Materials | Entered Factory 2308 | -7/Factory | Evolved 2 slots: Propulsion x1, Utility x1 2475 | -7/Factory | Discovered new exit (range 6) 2481 | -7/Factory | Entered Storage 2726 | -7/Storage | Lost 3 parts (2p1u) 2791 | -7/Storage | Garrison activated, responded to threat 2902 | -7/Storage | Lost 6 parts (2p2n2w) 2959 | -7/Storage | Lost 3 parts (1n2w) 2974 | -7/Storage | Core integrity fell below 50% 3009 | -7/Storage | Lost 10 allies 3015 | -7/Storage | Discovered new exit (range 16) 3023 | -7/Storage | Entered Factory 3023 | -6/Factory | Evolved 2 slots: Utility x2 3029 | -6/Factory | Identified exit to DSF 3029 | -6/Factory | Entered DSF 3030 | -6/DSF | Joined Warlord attack on 0b10 via DSF 3039 | -6/DSF | Lost 5 parts (1p1n3u) 3056 | -6/DSF | Additional patrols routed to DSF 3141 | -6/DSF | Discovered new exit (range 12) 3308 | -6/DSF | Entered Factory 3308 | -5/Factory | Evolved 2 slots: Utility x2 3616 | -5/Factory | Build established: Scavenger-Tank 3741 | -5/Factory | Lost 4 allies 3868 | -5/Factory | Discovered new exit (range 5) 3877 | -5/Factory | Entered Upper Caves 3913 | -5/Upper Caves | Learned 4 Factory zone layouts 3975 | -5/Upper Caves | Lost 4 parts (3u1w) 4112 | -5/Upper Caves | Spotted B-75 Beast 4277 | -5/Upper Caves | Core integrity fell below 50% 4332 | -5/Upper Caves | Lost 17 parts (3p4n7u3w) 4341 | -5/Upper Caves | Core integrity fell below 20% 4373 | -5/Upper Caves | Destroyed by B-75 Beast with Magnetic Acceleration Cannon Last Messages --------------- S-27 Virus destroyed. Adv. Assault Cannon destroyed. S-27 Virus destroyed. VTOL Module fries itself beyond repair. Lgt. Nuclear Core fries itself beyond repair. Arm. Medium Treads destroyed. Wave Gun+ destroyed. Imp. Medium Armor Plating destroyed. Arm. Medium Treads destroyed. Neutrino Core destroyed. Rnf. Deuterium Engine destroyed. Arm. Medium Treads destroyed. Adv. Recoil Stabilizer destroyed. Carbon-fiber Leg destroyed. Actuator Array destroyed. Mic. Fission Core destroyed. Coolant Injector destroyed. Slammed into M-22 Extractor. Imp. Transmission Jammer destroyed. G-50 Soldier misfires. Map ----- +----------------------------------------------------+ | ?????????????????????????????????????????????????? | | ?????????????????????????????????????????????????? | | ?????????????????????????????????????????????????? | | ?????????????????????????????????????????????????? | | ?????????????????????????????????????????????????? | | ?????????????????????????????????????????????????? | | ?????????????????????????????????????????????????? | | ????????????????????#####????????????????????????? | | ?????????????####???# #????????????????????????? | | ????????????## ##??# #????????###?????????????? | | ???????????## ##?# #???????## ###???????????? | | ??????###### ### #???????# ##??????????? | | ??????# ## ######### ##?????????? | | ???????# ## # #???##????? | | ????????????# ## ##?# ##???? | | ############# ######### ##" "## #???? | | ##???????# #"" #???? | | #?####???# " ####???? | | ### ##??####" #?????? | | " #??####"" " #?????? | | " " ##?## ## # #?????? | | " " " "" ##?# ## #?????? | | " " "" # ### ## #?????? | | " "" " ###### % ## ### #?????? | | """ " #????# #?# #?????? | | " #????# @ #?#"""" "#?????? | | """""" ##### ## ### ##?????? | | " " #### g ##??????? | | " #??# ###???????? | | ""BB #?# ##??????###? | | " """ BB## ## ##????## #? | | " " ### ## #???## %#? | | " " #?# ### #?### #? | | " % #? #?# ### #? | | ! ## #?## % % #? | | ## #??# #? | | ### #### ##??# ## ## #? | | # ## #???? ## ##???# ##### #### ##? | | # ## ##????????#?????## #???## #??# ##?? | | ## #????????????????###????# #### ##??? | | ## #???????????????????????# ###?? | | #???????????????????????## #?? | | ##????????????????????????## #### #?? | | ##??????????????????????????###??######?? | | ##########???????????????????????????????????????? | | ?????????????????????????????????????????????????? | | ?????????????????????????????????????????????????? | | ?????????????????????????????????????????????????? | | ?????????????????????????????????????????????????? | | ?????????????????????????????????????????????????? | +----------------------------------------------------+ Best States ------------- Heat Dissipation 53 Coolant Potential 65 Energy Generation 30 Energy Capacity 505 Matter Stores 300 Matter Capacity 300 Sight Range 20 Terrain Scan Density 210 Jamming Range 14 EM Shielding 2 Armor Coverage 225 Resistance: KI 20 Resistance: TH 10 Resistance: EM 25 Weapon Shielding 66 Phase Shifting 5 Evasion (%) 55 Recoil Reduction 9 Energy Filtering 30 Defensive Hacking 10 Authchip Count 2 Item Schematics ----------------- None Robot Schematics ------------------ None Fabricated ------------ Nothing Repaired ---------- Nothing Studied --------- Wave Gun | -5/Factory | Hacked Alien Tech Used ----------------- None Achievements -------------- None Challenges ------------ None Game ------ Seed TrapPersonalSink Manual? 0 Play Time 01:08:36 Cumulative 35.7 hours Start 2026.08.29 @ 20:37:29 End 2026.08.30 @ 08:07:16 Sessions 3 Manual Loads 0 Difficulty Rogue Special Mode None Game No. 69 Rogue 69 Adventurer 0 Explorer 0 Win Type - Total 0 Types 0/0/0/0/0/0/0/0/0/0 Lore% 13 Gallery% 24 Achievement% 16 Wizard Run 0 Options --------- Layout 1 ASCII 0 Keyboard 0 Movement Numpad Keybinds 0 Fullscreen 1 Font 32/SmallcapsGlow Map View 50x35 Zoom Use 0% Tactical HUD 0 Map Filters NONE Filters NONE Steam 1 RUN: 97593942-0485-4ffe-b561-0a0eef1b2d59